lending/lending_fUSD_20241211
["ID","MTS","AMOUNT","RATE_DAILY","PERIOD"]
[344938159,1733891460363,-500.0,0.00010994,2]
[344938160,1733891460372,-500.0,0.00010994,2]
[344938161,1733891460382,-500.0,0.00010994,2]
[344938162,1733891460392,-500.0,0.00010994,2]
[344938163,1733891460402,-607.91,0.00010994,2]
[344938164,1733891460411,-500.0,0.00010994,2]
[344938165,1733891460424,-197.53122333,0.00010994,2]
[344938166,1733891460434,-500.0,0.00010994,2]
[344938167,1733891460447,-500.0,0.00010994,2]
[344938168,1733891460467,-500.0,0.00010994,2]
[344938169,1733891460481,-500.0,0.00010994,2]
[344938170,1733891460498,-500.0,0.00010994,2]
[344938171,1733891460515,-500.0,0.00010994,2]
[344938172,1733891460532,-297.48331012,0.00010994,2]
[344938173,1733891460546,-500.0,0.00010994,2]
[344938174,1733891460561,-500.0,0.00010994,2]
[344938175,1733891460576,-500.0,0.00010994,2]
[344938176,1733891460593,-500.0,0.00010994,2]
[344938177,1733891460610,-207.06,0.00010994,2]
[344938178,1733891460627,-500.0,0.00010994,2]
[344938179,1733891460643,-620.4,0.00010994,2]
[344938180,1733891460659,-983.12,0.00010994,2]
[344938181,1733891460678,-828.55,0.00010994,2]
[344938182,1733891460692,-500.0,0.00010994,2]
[344938183,1733891460705,-500.0,0.00010994,2]
[344938184,1733891460721,-500.0,0.00010994,2]
[344938185,1733891460737,-500.0,0.00010994,2]
[344938186,1733891460749,-500.0,0.00010994,2]
[344938187,1733891460765,-1844.33,0.00010994,2]
[344938188,1733891460780,-500.0,0.00010994,2]
[344938189,1733891460792,-500.0,0.00010994,2]
[344938190,1733891460805,-500.0,0.00010994,2]
[344938191,1733891460819,-3117.26,0.00010994,2]
[344938192,1733891460832,-500.0,0.00010994,2]
[344938193,1733891460846,-1897.32,0.00010994,2]
[344938194,1733891460861,-3541.07,0.00010994,2]
[344938195,1733891460874,-500.0,0.00010994,2]
[344938196,1733891460887,-500.0,0.00010994,2]
[344938197,1733891460903,-500.0,0.00010994,2]
[344938198,1733891460918,-500.0,0.00010994,2]
[344938199,1733891460932,-11402.83,0.00010994,2]
[344938200,1733891460945,-1286.33,0.00010994,2]
[344938201,1733891460958,-500.0,0.00010994,2]
[344938202,1733891460971,-500.0,0.00010994,2]
[344938203,1733891460985,-554.99,0.00010994,2]
[344938204,1733891460998,-500.0,0.00010994,2]
[344938205,1733891461011,-500.0,0.00010994,2]
[344938206,1733891461025,-534.53911755,0.00010994,2]
[344938207,1733891461039,-500.0,0.00010994,2]
[344938208,1733891461052,-500.0,0.00010994,2]
[344938209,1733891461065,-546.14,0.00010994,2]
[344938210,1733891461078,-500.0,0.00010994,2]
[344938211,1733891461091,-500.0,0.00010994,2]
[344938212,1733891461105,-500.0,0.00010994,2]
[344938213,1733891461118,-1836.03,0.00010994,2]
[344938214,1733891461131,-500.0,0.00010994,2]
[344938215,1733891461145,-500.0,0.00010994,2]
[344938216,1733891461158,-500.0,0.00010994,2]
[344938217,1733891461173,-507.29,0.00010994,2]
[344938218,1733891461185,-1354.77,0.00010994,2]
[344938219,1733891461199,-500.0,0.00010994,2]
[344938220,1733891461211,-500.0,0.00010994,2]
[344938221,1733891461225,-971.45,0.00010994,2]
[344938222,1733891461238,-551.26876943,0.00010994,2]
[344938223,1733891461251,-500.0,0.00010994,2]
[344938224,1733891461265,-910.37,0.00010994,2]
[344938225,1733891461278,-500.0,0.00010994,2]
[344938226,1733891461291,-500.0,0.00010994,2]
[344938227,1733891461304,-536.59,0.00010994,2]
[344938228,1733891461318,-500.0,0.00010994,2]
[344938229,1733891461332,-500.0,0.00010994,2]
[344938230,1733891461346,-2266.78,0.00010994,2]
[344938231,1733891461360,-500.0,0.00010994,2]
[344938232,1733891461373,-500.0,0.00010994,2]
[344938233,1733891461387,-5149.97,0.00010994,2]
[344938234,1733891461401,-501.40914322,0.00010994,2]
[344938235,1733891461414,-501.98877388,0.00010994,2]
[344938236,1733891461429,-500.0,0.00010994,2]
[344938237,1733891461444,-500.0,0.00010994,2]
[344938238,1733891461457,-4134.05,0.00010994,2]
[344938239,1733891461471,-500.0,0.00010994,2]
[344938240,1733891461485,-618.58,0.00010994,2]
[344938241,1733891461498,-501.03470076,0.00010994,2]
[344938242,1733891461512,-501.4137439,0.00010994,2]
[344938243,1733891461525,-628.87,0.00010994,2]
[344938244,1733891461539,-500.0,0.00010994,2]
[344938245,1733891461553,-359.40256762,0.00010994,2]
[344938246,1733891461568,-500.0,0.00010994,2]
[344938247,1733891461582,-500.0,0.00010994,2]
[344938248,1733891461596,-500.49396932,0.00010994,2]
[344938249,1733891461607,-500.0,0.00010994,2]
[344938250,1733891461618,-1188.27,0.00010994,2]
[344938251,1733891461627,-1143.66,0.00010994,2]
[344938252,1733891461637,-500.39380545,0.00010994,2]
[344938253,1733891461647,-501.53402175,0.00010994,2]
[344938254,1733891461656,-500.7980203,0.00010994,2]
[344938255,1733891461668,-499.11984281,0.00010994,2]
[344938256,1733891461680,-500.0,0.00010994,2]
[344938257,1733891461689,-500.0,0.00010994,2]
[344938258,1733891461698,-501.56836538,0.00010994,2]
[344938259,1733891461707,-500.0,0.00010994,2]
[344938260,1733891461717,-1244.56,0.00010994,2]
[344938261,1733891461726,-1727.68,0.00010994,2]
[344938262,1733891461735,-500.0,0.00010994,2]
[344938263,1733891461744,-363.97,0.00010994,2]
[344938264,1733891461755,-500.0,0.00010994,2]
[344938265,1733891461765,-500.0,0.00010994,2]
[344938266,1733891461774,-567.38,0.00010994,2]
[344938267,1733891461783,-1086.36,0.00010994,2]
[344938268,1733891461792,-500.0,0.00010994,2]
[344938269,1733891461801,-500.0,0.00010994,2]
[344938270,1733891461812,-500.0,0.00010994,2]
[344938271,1733891461823,-500.0,0.00010995,2]
[344938272,1733891461832,-500.0,0.00010995,2]
[344938273,1733891461843,-630.705752,0.00010995,2]
[344938274,1733891461854,-526.91,0.00010995,2]
[344938275,1733891461863,-500.0,0.00010995,2]
[344938276,1733891462202,-500.0,0.00010995,2]
[344938277,1733891462223,-500.0,0.00010995,2]
[344938278,1733891462233,-650.32,0.00010995,2]
[344938279,1733891462242,-521.07,0.00010995,2]
[344938280,1733891462250,-500.0,0.00010995,2]
[344938281,1733891462259,-569.93,0.00010995,2]
[344938282,1733891462269,-630.75,0.00010995,2]
[344938283,1733891462279,-500.0,0.00010995,2]
[344938284,1733891462288,-705.92,0.00010995,2]
[344938285,1733891462298,-2502.19,0.00010995,2]
[344938286,1733891462307,-500.0,0.00010995,2]
[344938287,1733891462316,-500.0,0.00010995,2]
[344938288,1733891462325,-1337.61,0.00010995,2]
[344938289,1733891462335,-500.0,0.00010995,2]
[344938290,1733891462345,-500.0,0.00010995,2]
[344938291,1733891462355,-500.0,0.00010995,2]
[344938292,1733891462365,-518.82,0.00010995,2]
[344938293,1733891462375,-704.57,0.00010995,2]
[344938294,1733891462385,-500.0,0.00010995,2]
[344938295,1733891462395,-419.46367251,0.00010995,2]
[344938296,1733891462404,-500.0,0.00010995,2]
[344938297,1733891462414,-500.0,0.00010995,2]
[344938298,1733891462429,-500.0,0.00010995,2]
[344938299,1733891462439,-221.12051112,0.00010995,2]
[344938300,1733891462449,-500.0,0.00010995,2]
[344938301,1733891462459,-500.0,0.00010995,2]
[344938302,1733891462469,-500.0,0.00010995,2]
[344938303,1733891462478,-500.0,0.00010995,2]
[344938304,1733891462488,-500.0,0.00010995,2]
[344938305,1733891462498,-500.0,0.00010995,2]
[344938306,1733891462509,-500.0,0.00010995,2]
[344938307,1733891462519,-500.0,0.00010995,2]
[344938308,1733891462530,-500.0,0.00010995,2]
[344938309,1733891462541,-500.0,0.00010995,2]
[344938310,1733891462553,-500.0,0.00010997,2]
[344938311,1733891462564,-1864.78,0.00010997,2]
[344938312,1733891462575,-545.5,0.00010997,2]
[344938313,1733891462586,-2404.88,0.00010997,2]
[344938314,1733891462596,-581.07,0.00010997,2]
[344938315,1733891462607,-1075.65,0.00010997,2]
[344938316,1733891462617,-500.0,0.00010997,2]
[344938317,1733891462628,-829.3,0.00010997,2]
[344938318,1733891462637,-201.647396,0.00010997,2]
[344938319,1733891462648,-448.011976,0.00010997,2]
[344938320,1733891462658,-500.0,0.00010997,2]
[344938321,1733891462673,-535.65,0.00010997,2]
[344938322,1733891462684,-500.0,0.00010997,2]
[344938323,1733891462694,-1159.33,0.00010997,2]
[344938324,1733891462705,-500.0,0.00010997,2]
[344938325,1733891462715,-500.0,0.00010997,2]
[344938326,1733891462728,-619.19,0.00010997,2]
[344938327,1733891462738,-500.0,0.00010997,2]
[344938328,1733891462749,-540.08,0.00010997,2]
[344938329,1733891462759,-2879.16,0.00010997,2]
[344938330,1733891462769,-500.0,0.00010997,2]
[344938331,1733891462779,-223.52254,0.00010997,2]
[344938332,1733891462789,-351.223003,0.00010997,2]
[344938333,1733891462798,-500.0,0.00010997,2]
[344938334,1733891462808,-639.28,0.00010997,2]
[344938335,1733891462818,-500.0,0.00010997,2]
[344938336,1733891462828,-697.05,0.00010997,2]
[344938337,1733891462837,-500.0,0.00010997,2]
[344938338,1733891462847,-1566.77,0.00010997,2]
[344938339,1733891462856,-6093.04,0.00010997,2]
[344938340,1733891462865,-500.0,0.00010997,2]
[344938341,1733891462875,-1858.35,0.00010997,2]
[344938342,1733891462885,-1635.15,0.00010997,2]
[344938343,1733891462895,-500.0,0.00010997,2]
[344938344,1733891462905,-774.03,0.00010997,2]
[344938345,1733891462915,-1689.5,0.00010997,2]
[344938346,1733891462929,-500.0,0.00010997,2]
[344938347,1733891462939,-519.79,0.00010997,2]
[344938348,1733891462949,-500.0,0.00010997,2]
[344938349,1733891462958,-500.0,0.00010997,2]
[344938350,1733891462968,-673.31,0.00010997,2]
[344938351,1733891462978,-1495.95,0.00010997,2]
[344938352,1733891462987,-1789.83,0.00010997,2]
[344938353,1733891462997,-1275.57,0.00010997,2]
[344938354,1733891463006,-500.0,0.00010997,2]
[344938355,1733891463016,-4426.86,0.00010997,2]
[344938356,1733891463025,-500.0,0.00010997,2]
[344938357,1733891463035,-500.0,0.00010997,2]
[344938358,1733891463046,-1544.48,0.00010997,2]
[344938359,1733891463056,-1973.51,0.00010997,2]
[344938360,1733891463067,-500.0,0.00010997,2]
[344938361,1733891463078,-4427.92,0.00010997,2]
[344938362,1733891463088,-500.0,0.00010997,2]
[344938363,1733891463099,-500.0,0.00010997,2]
[344938364,1733891463109,-500.0,0.00010997,2]
[344938365,1733891463119,-500.0,0.00010997,2]
[344938366,1733891463129,-500.0,0.00010997,2]
[344938367,1733891463139,-2340.65,0.00010997,2]
[344938368,1733891463150,-3894.52,0.00010997,2]
[344938369,1733891463161,-500.0,0.00010997,2]
[344938370,1733891463175,-1304.5,0.00010997,2]
[344938371,1733891463184,-157.80032445,0.00010998,2]
[344938372,1733891463195,-543.0793255,0.00010998,2]
[344938373,1733891463205,-500.0,0.00010998,2]
[344938374,1733891463216,-500.0,0.00010998,2]
[344938375,1733891463226,-500.0,0.00010998,2]
[344938376,1733891463235,-500.0,0.00010998,2]
[344938377,1733891463246,-500.0,0.00010998,2]
[344938378,1733891463256,-500.0,0.00010998,2]
[344938379,1733891463266,-623.97,0.00010998,2]
[344938380,1733891463276,-754.3,0.00010998,2]
[344938381,1733891463286,-500.0,0.00010998,2]
[344938382,1733891463296,-500.0,0.00010998,2]
[344938383,1733891463306,-500.0,0.00010998,2]
[344938384,1733891463315,-518.84962992,0.00010998,2]
[344938385,1733891463325,-443.13339058,0.00010998,2]
[344938386,1733891463334,-426.40364712,0.00010998,2]
[344938387,1733891463344,-502.09501675,0.00010998,2]
[344938388,1733891463355,-500.0,0.00010998,2]
[344938389,1733891463365,-500.0,0.00010998,2]
[344938390,1733891463376,-394.71620171,0.00010998,2]
[344938391,1733891463386,-500.0,0.00010998,2]
[344938392,1733891463395,-502.66673795,0.00010998,2]
[344938393,1733891463405,-947.01,0.00010998,2]
[344938394,1733891463415,-290.38,0.00010998,2]
[344938395,1733891463428,-526.91,0.00010998,2]
[344938396,1733891463438,-596.76,0.00010998,2]
[344938397,1733891463449,-500.0,0.00010998,2]
[344938398,1733891463460,-500.0,0.00010998,2]
[344938399,1733891463470,-500.0,0.00010998,2]
[344938400,1733891463480,-472.74,0.00010998,2]
[344938401,1733891463491,-579.94,0.00010998,2]
[344938402,1733891463501,-500.0,0.00010998,2]
[344938403,1733891463511,-500.0,0.00010998,2]
[344938404,1733891463521,-500.0,0.00010998,2]
[344938405,1733891463531,-500.0,0.00010998,2]
[344938406,1733891463540,-536.58,0.00010998,2]
[344938407,1733891463550,-418.10601855,0.00010998,2]
[344938408,1733891463560,-1423.19,0.00010998,2]
[344938409,1733891463571,-377.14621683,0.00010998,2]
[344938410,1733891463580,-500.0,0.00010998,2]
[344938411,1733891463590,-500.0,0.00010998,2]
[344938412,1733891463599,-650.32,0.00010998,2]
[344938413,1733891463610,-272.68,0.00010998,2]
[344938414,1733891463620,-500.0,0.00010998,2]
[344938415,1733891463630,-1030.21,0.00010998,2]
[344938416,1733891463640,-500.0,0.00010998,2]
[344938417,1733891463650,-521.07,0.00010998,2]
[344938418,1733891463660,-761.41,0.00010998,2]
[344938419,1733891463675,-500.0,0.00010998,2]
[344938420,1733891463685,-500.0,0.00010998,2]
[344938421,1733891463694,-500.0,0.00010998,2]
[344938422,1733891463704,-500.0,0.00010998,2]
[344938423,1733891463714,-500.0,0.00010998,2]
[344938424,1733891463725,-604.5,0.00010998,2]
[344938425,1733891463735,-569.93,0.00010998,2]
[344938426,1733891463746,-500.0,0.00010998,2]
[344938427,1733891463756,-500.0,0.00010998,2]
[344938428,1733891463766,-500.0,0.00010998,2]
[344938429,1733891463776,-500.0,0.00010998,2]
[344938430,1733891463786,-500.0,0.00010998,2]
[344938431,1733891463795,-500.0,0.00010998,2]
[344938432,1733891463805,-500.0,0.00010998,2]
[344938433,1733891463815,-630.75,0.00010998,2]
[344938434,1733891463825,-500.0,0.00010998,2]
[344938435,1733891463835,-1407.95,0.00010998,2]
[344938436,1733891463845,-500.0,0.00010998,2]
[344938437,1733891463855,-500.0,0.00010998,2]
[344938438,1733891463871,-500.0,0.00010998,2]
[344938439,1733891463882,-500.0,0.00010998,2]
[344938440,1733891463893,-500.0,0.00010998,2]
[344938441,1733891463903,-500.0,0.00010998,2]
[344938442,1733891463913,-500.0,0.00010998,2]
[344938443,1733891463925,-500.0,0.00010998,2]
[344938444,1733891463935,-705.92,0.00010998,2]
[344938445,1733891463945,-500.0,0.00010998,2]
[344938446,1733891463954,-500.0,0.00010998,2]
[344938447,1733891463964,-1037.91,0.00010998,2]
[344938448,1733891463975,-500.0,0.00010998,2]
[344938449,1733891463985,-500.0,0.00010998,2]
[344938450,1733891463995,-500.0,0.00010998,2]
[344938451,1733891464005,-500.0,0.00010998,2]
[344938452,1733891464015,-500.0,0.00010998,2]
[344938453,1733891464025,-500.0,0.00010998,2]
[344938454,1733891464035,-2502.19,0.00010998,2]
[344938455,1733891464045,-500.0,0.00010998,2]
[344938456,1733891464055,-500.0,0.00010998,2]
[344938457,1733891464066,-500.0,0.00010998,2]
[344938458,1733891464076,-500.0,0.00010998,2]
[344938459,1733891464086,-500.0,0.00010998,2]
[344938460,1733891464096,-500.0,0.00010998,2]
[344938461,1733891464105,-500.0,0.00010998,2]
[344938462,1733891464116,-500.0,0.00010998,2]
[344938463,1733891464125,-1337.61,0.00010998,2]
[344938464,1733891464135,-697.73,0.00010998,2]
[344938465,1733891464145,-500.0,0.00010998,2]
[344938466,1733891464154,-500.0,0.00010998,2]
[344938467,1733891464165,-500.0,0.00010998,2]
[344938468,1733891464178,-500.0,0.00010998,2]
[344938469,1733891464188,-500.0,0.00010998,2]
[344938470,1733891464198,-500.0,0.00010998,2]
[344938471,1733891464207,-543.46671059,0.00010998,2]
[344938472,1733891464218,-500.0,0.00010998,2]
[344938473,1733891464228,-500.0,0.00010998,2]
[344938474,1733891464239,-500.0,0.00010998,2]
[344938475,1733891464249,-500.0,0.00010998,2]
[344938476,1733891464259,-500.0,0.00010998,2]
[344938477,1733891464270,-500.0,0.00010998,2]
[344938478,1733891464280,-298.76,0.00010998,2]
[344938479,1733891464290,-500.0,0.00010998,2]
[344938480,1733891464299,-500.0,0.00010998,2]
[344938481,1733891464309,-500.0,0.00010998,2]
[344938482,1733891464319,-500.0,0.00010998,2]
[344938483,1733891464328,-500.0,0.00010998,2]
[344938484,1733891464339,-500.0,0.00010998,2]
[344938485,1733891464349,-500.0,0.00010998,2]
[344938486,1733891464359,-518.82,0.00010998,2]
[344938487,1733891464369,-500.0,0.00010998,2]
[344938488,1733891464379,-500.0,0.00010998,2]
[344938489,1733891464390,-500.0,0.00010998,2]
[344938490,1733891464400,-704.57,0.00010998,2]
[344938491,1733891464411,-628.83952995,0.00010998,2]
[344938492,1733891464424,-500.0,0.00010998,2]
[344938493,1733891464434,-500.0,0.00010998,2]
[344938494,1733891464444,-500.0,0.00010998,2]
[344938495,1733891464454,-421.1844261,0.00010998,2]
[344938496,1733891464493,-78.8155739,0.00010998,2]
[344938497,1733891464503,-500.0,0.00010998,2]
[344938498,1733891464514,-500.0,0.00010998,2]
[344938499,1733891464523,-500.0,0.00010998,2]
[344938500,1733891464533,-500.0,0.00010998,2]
[344938501,1733891464542,-402.41113166,0.00010998,2]
[344938502,1733891464552,-500.0,0.00010998,2]
[344938503,1733891464561,-1409.78,0.00010998,2]
[344938504,1733891464571,-500.0,0.00010998,2]
[344938505,1733891464580,-500.0,0.00010998,2]
[344938506,1733891464590,-500.0,0.00010998,2]
[344938507,1733891464599,-500.0,0.00010998,2]
[344938508,1733891464608,-500.0,0.00010998,2]
[344938509,1733891464618,-500.0,0.00010998,2]
[344938510,1733891464627,-575.20454025,0.00010998,2]
[344938511,1733891464636,-500.0,0.00010998,2]
[344938512,1733891464646,-500.0,0.00010998,2]
[344938513,1733891464655,-443.32,0.00010998,2]
[344938514,1733891464665,-500.0,0.00010998,2]
[344938515,1733891464680,-500.0,0.00010998,2]
[344938516,1733891464689,-500.0,0.00010998,2]
[344938517,1733891464699,-500.0,0.00010998,2]
[344938518,1733891464708,-57.53645316,0.00010998,2]
[344938519,1733891464723,-442.46354684,0.00010998,2]
[344938520,1733891464733,-503.0899171,0.00010998,2]
[344938521,1733891464742,-500.0,0.00010998,2]
[344938522,1733891464755,-500.0,0.00010998,2]
[344938523,1733891464765,-500.0,0.00010998,2]
[344938524,1733891464775,-500.0,0.00010998,2]
[344938525,1733891464784,-501.95412362,0.00010998,2]
[344938526,1733891464794,-500.0,0.00010998,2]
[344938527,1733891464803,-500.0,0.00010998,2]
[344938528,1733891464813,-500.0,0.00010998,2]
[344938529,1733891464823,-500.0,0.00010998,2]
[344938530,1733891464832,-500.0,0.00010998,2]
[344938531,1733891464841,-500.0,0.00010998,2]
[344938532,1733891464851,-1679.49241244,0.00010998,2]
[344938533,1733891464862,-71.76758756,0.00010998,2]
[344938534,1733891464872,-500.0,0.00010998,2]
[344938535,1733891464882,-60.92876163,0.00010998,2]
[344938536,1733891464893,-357.6920025,0.00010998,2]
[344938537,1733891464926,-81.37923587,0.00010998,2]
[344938538,1733891464935,-538.87,0.00010998,2]
[344938539,1733891464944,-500.0,0.00010998,2]
[344938540,1733891464954,-500.0,0.00010998,2]
[344938541,1733891464963,-1507.96,0.00010998,2]
[344938542,1733891464973,-500.0,0.00010998,2]
[344938543,1733891464983,-500.0,0.00010998,2]
[344938544,1733891464993,-500.0,0.00010998,2]
[344938545,1733891465002,-592.85,0.00010998,2]
[344938546,1733891465011,-500.0,0.00010998,2]
[344938547,1733891465022,-500.0,0.00010998,2]
[344938548,1733891465032,-500.0,0.00010998,2]
[344938549,1733891465041,-627.42812106,0.00010998,2]
[344938550,1733891465051,-500.0,0.00010998,2]
[344938551,1733891465060,-500.0,0.00010998,2]
[344938552,1733891465070,-500.0,0.00010998,2]
[344938553,1733891465079,-500.0,0.00010998,2]
[344938554,1733891465088,-500.0,0.00010998,2]
[344938555,1733891465098,-500.0,0.00010998,2]
[344938556,1733891465108,-500.0,0.00010998,2]
[344938557,1733891465118,-773.77,0.00010998,2]
[344938558,1733891465127,-500.0,0.00010998,2]
[344938559,1733891465137,-500.0,0.00010998,2]
[344938560,1733891465146,-500.0,0.00010998,2]
[344938561,1733891465155,-500.0,0.00010998,2]
[344938562,1733891465165,-500.0,0.00010998,2]
[344938563,1733891465180,-508.74377288,0.00010998,2]
[344938564,1733891465192,-562.32350667,0.00010998,2]
[344938565,1733891465201,-500.0,0.00010998,2]
[344938566,1733891465211,-607.91,0.00010998,2]
[344938567,1733891465221,-500.0,0.00010998,2]
[344938568,1733891465231,-168.30878554,0.00010998,2]
[344938569,1733891465714,-331.69121446,0.00010998,2]
[344938570,1733891465724,-500.0,0.00010998,2]
[344938571,1733891465733,-296.97044992,0.00010998,2]
[344938572,1733891465744,-112.50606018,0.00010998,2]
[344938573,1733891465754,-500.0,0.00010998,2]
[344938574,1733891465764,-500.0,0.00010998,2]
[344938575,1733891465773,-500.0,0.00010998,2]
[344938576,1733891465782,-500.0,0.00010998,2]
[344938577,1733891465791,-500.0,0.00010998,2]
[344938578,1733891465801,-500.0,0.00010998,2]
[344938579,1733891465810,-500.0,0.00010998,2]
[344938580,1733891465820,-425.56229712,0.00010998,2]
[344938581,1733891465830,-506.8150025,0.00010998,2]
[344938582,1733891465840,-620.4,0.00010998,2]
[344938583,1733891465850,-983.12,0.00010998,2]
[344938584,1733891465861,-828.55,0.00010998,2]
[344938585,1733891465871,-1864.78,0.00010998,2]
[344938586,1733891465881,-500.0,0.00010998,2]
[344938587,1733891465891,-500.0,0.00010998,2]
[344938588,1733891465900,-500.0,0.00010998,2]
[344938589,1733891465911,-500.0,0.00010998,2]
[344938590,1733891465924,-500.0,0.00010998,2]
[344938591,1733891465934,-1844.33,0.00010998,2]
[344938592,1733891465944,-500.0,0.00010998,2]
[344938593,1733891465954,-500.0,0.00010998,2]
[344938594,1733891465964,-545.5,0.00010998,2]
[344938595,1733891465973,-500.0,0.00010998,2]
[344938596,1733891465983,-3117.26,0.00010998,2]
[344938597,1733891465992,-2404.88,0.00010998,2]
[344938598,1733891466001,-500.0,0.00010998,2]
[344938599,1733891466011,-581.07,0.00010998,2]
[344938600,1733891466020,-1897.32,0.00010998,2]
[344938601,1733891466029,-3541.07,0.00010998,2]
[344938602,1733891466039,-1075.65,0.00010998,2]
[344938603,1733891466049,-500.0,0.00010998,2]
[344938604,1733891466059,-829.3,0.00010998,2]
[344938605,1733891466070,-500.0,0.00010998,2]
[344938606,1733891466080,-448.011976,0.00010998,2]
[344938607,1733891466089,-240.8746642,0.00010998,2]
[344938608,1733891466102,-259.1253358,0.00010998,2]
[344938609,1733891466112,-500.0,0.00010998,2]
[344938610,1733891466121,-500.0,0.00010998,2]
[344938611,1733891466131,-500.0,0.00010998,2]
[344938612,1733891466141,-84.22845846,0.00010998,2]
[344938613,1733891466152,-451.42154154,0.00010998,2]
[344938614,1733891466162,-5954.47024691,0.00010998,2]
[344938615,1733891466662,-500.0,0.00010958,2]
[344938616,1733891466676,-500.0,0.00010958,2]
[344938617,1733891466689,-88.3937991,0.00010958,2]
[344938618,1733891466714,-319.2750025,0.00010958,2]
[344938619,1733891466726,-92.3311984,0.00010958,2]
[344938620,1733891466735,-411.5093283,0.00010958,2]
[344938621,1733891466748,-588.4906717,0.00010958,2]
[344938622,1733891466757,-500.0,0.00010958,2]
[344938623,1733891466766,-500.0,0.00010958,2]
[344938624,1733891466775,-408.85157936,0.00010958,2]
[344938625,1733891466797,-91.14842064,0.00010958,2]
[344938626,1733891466806,-500.0,0.00010958,2]
[344938627,1733891466817,-500.0,0.00010958,2]
[344938628,1733891466827,-500.0,0.00010958,2]
[344938629,1733891466837,-500.0,0.00010958,2]
[344938630,1733891466847,-234.32141289,0.00010958,2]
[344938631,1733891467641,-1098.74858711,0.00010958,2]
[344938632,1733891467651,-500.0,0.00010958,2]
[344938633,1733891467662,-1333.07,0.00010958,2]
[344938634,1733891467676,-500.0,0.0001099,2]
[344938635,1733891467688,-500.0,0.0001099,2]
[344938636,1733891467699,-500.0,0.0001099,2]
[344938637,1733891467709,-500.0,0.00010991,2]
[344938638,1733891467720,-1000.0,0.00010991,2]
[344938639,1733891467729,-500.0,0.00010991,2]
[344938640,1733891467739,-983.65,0.00010992,2]
[344938641,1733891467748,-500.0,0.00010993,2]
[344938642,1733891467759,-500.0,0.00010993,2]
[344938643,1733891467769,-500.0,0.00010997,2]
[344938644,1733891467824,-5448.35975309,0.00010998,2]
[344938645,1733891467834,-1286.33,0.00010998,2]
[344938646,1733891467845,-500.0,0.00010998,2]
[344938647,1733891467855,-500.0,0.00010998,2]
[344938648,1733891467864,-1159.33,0.00010998,2]
[344938649,1733891467874,-500.0,0.00010998,2]
[344938650,1733891467884,-389.37,0.00010998,2]
[344938651,1733891467894,-554.99,0.00010998,2]
[344938652,1733891467904,-500.0,0.00010998,2]
[344938653,1733891467917,-500.0,0.00010998,2]
[344938654,1733891467929,-500.0,0.00010998,2]
[344938655,1733891467939,-619.19,0.00010998,2]
[344938656,1733891467949,-500.0,0.00010998,2]
[344938657,1733891467958,-500.0,0.00010998,2]
[344938658,1733891467967,-546.14,0.00010998,2]